Workbook

Sheet ★報告書作る前に★
A1: ①集合写真等を挿入するときにダブルクリックしても反応しない場合は
A2: ホームページの報告様式のページにある下記のPDFを参照してください。
E10: □
E11: ☑
A12: ★提出時、検査時に下記の書類がそろっているか確認すること
B13: 報告書類チェックリスト
D14: 必須書類が足りません！
A15: No. | C15: 様式番号 | D15: 様式名 | E15: 活動 組織 | F15: 備考 | H15: =SUM(H16:H35) -> 1
A16: 1 | C16: 本紙 | D16: 報告書類チェックリスト | E16: □ | F16: 提出前に必ず自身でチェックすること。揃っていない場合は受理できません。 | H16: =COUNTIF(E16,"☑") -> 0
A17: 2 | B17: 必須 | C17: 様式第20号 | D17: 実施状況報告書（表紙） | E17: ☑ | F17: 表紙 | H17: 1
A18: 3 | B18: 必須 | C18: 様式第18号 | D18: 活動記録兼作業写真整理帳 | E18: □ | F18: 集合写真（撮影者も含め全員が写るように） | H18: 0
A19: 4 | B19: 必須 | C19: 様式第18号別添１ | D19: 活動記録兼作業写真整理帳 （活動場所ごとの作業写真） | E19: □ | F19: 活動写真(前・中・後) | H19: 0
A20: 5 | B20: 必須 | C20: 様式第18号別添２ | D20: 作業写真整理帳 （資源活用の取組の写真） | E20: □ | F20: 資源活用の取組（近・遠景） | H20: 0
A21: 6 | B21: 必須 | C21: 様式第19号 | D21: モニタリング結果報告書 | E21: □ | F21: 達成状況を数値化すること | H21: 0
A22: 7 | B22: 必須 | C22: 様式第21号 | D22: 金銭出納簿 | E22: □ | H22: 0
A23: 8 | B23: 必須 | C23: 様式第20号別紙１ | D23: 実施状況整理票 | E23: □ | H23: 0
A24: 9 | B24: 必須 | C24: 様式第20号別紙２ | D24: 効果チェックシート | E24: □ | H24: 0
A25: 10 | B25: 必須 | C25: 様式第14号 | D25: 「みどりチェック」チェックシート | E25: □ | F25: 報告時欄に「○」をつけること | H25: 0
A26: 11 | B26: 必須 | C26: 参考様式第12号 | D26: 活動記録総括表 | E26: □ | H26: 0
A27: 12 | B27: 必須 | C27: 様式第11号 準用 | D27: 森林整備実績図 | E27: □ | H27: 0
A28: 13 | B28: 必須 | C28: 参考様式第13号 | D28: 森林整備区域管理票（１） | E28: □ | H28: 0
A29: 14 | B29: 必須 | C29: 参考様式第13号 | D29: 森林整備区域管理票（２） | E29: □ | H29: 0
A30: 15 | B30: 必須 | C30: 任意様式 | D30: 領収書の写し（人件費の受領書を含む） | E30: □ | H30: 0
A31: 16 | B31: 必須 | C31: 任意様式 | D31: 預貯金通帳の写し | E31: □ | H31: 0
A32: 17 | B32: 必須 | C32: 任意様式 | D32: 傷害保険加入状況が分かる書類（証書の写し等） | E32: □ | H32: 0
A33: 18 | B33: 該当 組織 のみ | C33: 任意様式 | D33: 「関係人口創出・維持」の参加者名簿 | E33: □ | H33: 0
A34: 19 | B34: 該当 組織 のみ | C34: 参考様式第14号 | D34: 資機材・施設管理票 | E34: □ | H34: =COUNTIF(E34,"☑") -> 0
A35: 20 | B35: 該当 組織 のみ | C35: 別記様式第9号 | D35: 財産管理台帳 | E35: □ | H35: 0

Sheet 0_実施状況報告書（表紙）
A1: 実施状況報告書（活動組織→地域協議会）
A2: （様式第20号）
R4: 番 号
R5: 2027-02-15
A8: ひょうご森林林業協同組合連合会
A9: 代表理事会長 新岡 史朗 様
J11: 活動組織名 | O11: ： | P11: ○○森林保全の会
J12: 役職 | O12: ： | P12: 代表
J13: 氏名 | O13: ： | P13: 山林 太郎
A15: 令和8年度 里山林活性化による多面的機能発揮対策交付金に係る実施状況報告書
A17: 令和８年度の実施状況について、里山林活性化による多面的機能発揮対策実施要領（令和７年３月31日６林整森第266号林野庁長官通知）別紙のⅢの第４の７（１）に基づき、下記の関係書類を添えて報告する。
A19: 記
A21: １ 活動記録兼作業写真整理帳 （様式第18号）
A23: ２ 作業写真整理帳 （様式第18号別添１、別添２）
A25: ３ モニタリング結果報告書（様式第19号）
A27: ４ 金銭出納簿 （様式第21号）
A29: ５ 実施状況整理票（様式第20号 別紙１）
A31: ６ 効果チェックシート（様式第20号 別紙２）
A33: ７ 「みどりチェック」チェックシート（活動組織向け）（様式第14号）
A35: ８ 「関係人口創出・維持」の活動の参加者名簿（注１）
A37: ９ 活動記録総括表（参考様式第12号）
A39: （注１）「関係人口創出・維持」を実施した場合に添付すること。

Sheet 1_活動記録（集合写真）
A1: 活動推進費＝１
A2: 地域活動型（森林資源活用）＝２
A3: 地域活動型（竹林資源活用）＝３
A4: 複業実践型＝４
A5: 機能強化＝５
A6: 関係人口創出・維持＝６
A7: ※ 撮影者を含む
A8: 活動記録兼作業写真整理帳（活動日ごとの集合写真） （活動組織→地域協議会） | L8: 集合写真
A9: （様式第18号）
A10: 令和８年度 里山林活性化による多面的機能発揮対策交付金に係る
A11: 活動記録兼作業写真整理帳（活動日ごとの集合写真）
K12: № | L12: 1
L13: ○○活動組織
A14: 活動日： | C14: 年 | E14: 月 | G14: 日
A15: 写真１ ダブルクリックで画像を選択 | I15: 区分※
I16: 取組 内容 | J16: 活動場所
J17: 活動内容
J18: 実施時間
J19: 活動 参加 人数 | K19: 構成員
K20: 構成員以外
K21: 合計 | L21: =SUM(L19:L20) -> 0
A23: 活動日： | C23: 年 | E23: 月 | G23: 日
A24: 写真２ ダブルクリックで画像を選択 | I24: 区分※
I25: 取組 内容 | J25: 活動場所
J26: 活動内容
J27: 実施時間
J28: 活動 参加 人数 | K28: 構成員
K29: 構成員以外
K30: 合計 | L30: =SUM(L28:L29) -> 0
A32: 活動日： | C32: 年 | E32: 月 | G32: 日
A33: 写真３ ダブルクリックで画像を選択 | I33: 区分※
I34: 取組 内容 | J34: 活動場所
J35: 活動内容
J36: 実施時間
J37: 活動 参加 人数 | K37: 構成員
K38: 構成員以外
K39: 合計 | L39: =SUM(L37:L38) -> 0
A41: ※ 区分：活動推進費＝１、地域活動型（森林資源活用）＝２、地域活動型（竹林資源活用）＝３、複業実践型＝４、機能強化＝５、関係人口創出・維持＝６

Sheet 2_活動記録（場所ごと）
B1: 活動記録兼作業写真整理帳（活動組織→地域協議会） | M1: 場所ごと
B3: （様式第18号 別添１）
B4: 令和8年度 里山林活性化による多面的機能発揮対策交付金に係る
B5: 活動記録兼作業写真整理帳（活動場所ごとの作業写真）
L6: № | M6: 1
J7: ='0_実施状況報告書（表紙）'!P11 -> ○○森林保全の会
B9: ※作業箇所ごとに撮影地点を１箇所定め、作業前・作業中・作業後の状況を、同一地点・同一方向・同一画角でそれぞれ撮影すること。 ※作業箇所の面積が１ha以上の場合は、撮影地点は２箇所以上定めること。
B11: 作業前： | D11: 年 | F11: 月 | H11: 日
B12: 作業前 写真 ダブルクリックで写真を選択 | J12: 活動場所
J13: 取組内容
B21: 作業中： | D21: 年 | F21: 月 | H21: 日
B22: 作業中 写真 ダブルクリックで写真を選択
B31: 作業後： | D31: 年 | F31: 月 | H31: 日
B32: 作業後 写真 ダブルクリックで写真を選択
B41: ※ 活動の区分：活動推進費＝１、地域活動型（森林資源活用）＝２、地域活動型（竹林資源活用）＝３、複業実践型＝４、機能強化＝５、関係人口創出・維持＝６

Sheet 2_資源活用の取組
A1: 作業写真整理帳（資源活用の取組の写真） （活動組織→地域協議会）
A2: （様式第18号 別添２）
A3: 令和８年度 里山林活性化による多面的機能発揮対策交付金に係る
A4: 作業写真整理帳（資源活用の取組の写真）
K5: № | L5: 1
L6: ='0_実施状況報告書（表紙）'!P11 -> ○○森林保全の会
A8: 資源活用の取組の内容
A11: 資源活用の取組の内容（遠景）
A12: 遠景写真 ダブルクリックで写真を選択
A21: 資源活用の取組の内容（近景）
A22: 近景写真 ダブルクリックで写真を選択
A31: ※資源活用の取組が複数ある場合は、いずれかの取組の写真（遠景・ 近景）を貼付すること。

Sheet 3_モニタリング結果報告書
A1: モニタリング結果報告書（活動組織→地域協議会）
A2: （様式第19号）
A3: 令和8年度里山林活性化による多面的機能発揮対策交付金 モニタリング結果報告書
A4: （注）目標の設定及び標準地の状況の記載については、別に定めるガイドラインを参考とすること。
A5: １ 活動の目標等
A6: 対象森林： | D6: Ａ区域の里山林
A7: 区分： | D7: 地域活動型（森林資源活用）
A8: 目標： | D8: 見通しの良い里山林を目指す、3年後には３０ｍ見通しを目指す
A9: モニタリング調査方法： | D9: 樹木の本数調査
A11: ２ 活動実施前（ | C11: 8 | E11: 年度）
A12: ・標準地の 状況 | B12: 項目 | D12: 現況 | F12: 3年後の目標
B13: 見通し | D13: 2 | F13: 30
B14: 見通し | D14: 5 | F14: 30
B15: 見通し | D15: 10 | F15: 30
A17: （コメント欄）
A18: 約40年余り手つかずの放置林である。 材の伐採、利用を通じて循環を図る。
A20: ３ 活動１年目（ | C20: =C11 -> 8 | E20: 年度）
A21: ・標準地の 状況 | B21: 項目 | D21: 作業前 | F21: 作業後
B22: =IF(B13="","",B13) -> 見通し | D22: =IF(D13="","",D13) -> 2 | F22: 10
B23: =IF(B14="","",B14) -> 見通し | D23: =IF(D14="","",D14) -> 5 | F23: 10
B24: 見通し | D24: 10 | F24: 10
A26: ・目標達成 度 | B26: =IFERROR(IF(((IF(AND(F13<>"",D13<>F13),(D13-F22)/(D13-F13),0)+ IF(AND(F14<>"",D14<>F14),(D14-F23)/(D14-F14),0)+ IF(AND(F15<>"",D15<>F15),(D15-F24)/(D15-F15),0)+ IF(AND(F16<>"",D16<>F16),(D16-F25)/(D16-F16),0))/( IF(AND(F13<>"",D13<>F13),1,0)+ IF(AND(F14<>"",D14<>F14),1,0)+ IF(AND(F15<>"",D15<>F15),1,0)+ IF(AND(F16<>"",D16<>F16),1,0)))<0,"",(( IF(AND(F13<>"",D13<>F13),(D13-F22)/(D13-F13),0)+ IF(AND(F14<>"",D14<>F14),(D14-F23)/(D14-F14),0)+ IF(AND(F15<>"",D15<>F15),(D15-F24)/(D15-F15),0)+ IF(AND(F16<>"",D16<>F16),(D16-F25)/(D16-F16),0))/( IF(AND(F13<>"",D13<>F13),1,0)+ IF(AND(F14<>"",D14<>F14),1,0)+ IF(AND(F15<>"",D15<>F15),1,0)+ IF(AND(F16<>"",D16<>F16),1,0)))),"") -> 0.1619047619
A27: ・次年度に 向けた 改善策
A29: ※数字の根拠としてモニタリング野帳を添付すること
A30: ４ 活動２年目（ | C30: =C20+1 -> 9 | E30: 年度）
A31: ・標準地の 状況 | B31: 項目 | D31: 作業前 | F31: 作業後
B32: =B22 -> 見通し | D32: =IF(F22="","",F22) -> 10 | F32: 20
B33: =B23 -> 見通し | D33: =IF(F23="","",F23) -> 10 | F33: 25
B34: =B24 -> 見通し | D34: =IF(F24="","",F24) -> 10 | F34: 15
B35: =B25 ->  | D35: =IF(F25="","",F25) -> 
A36: ・目標達成 度 | B36: =IFERROR(IF(((IF(AND(F13<>"",D13<>F13),(D13-F32)/(D13-F13),0)+ IF(AND(F14<>"",D14<>F14),(D14-F33)/(D14-F14),0)+ IF(AND(F15<>"",D15<>F15),(D15-F34)/(D15-F15),0)+ IF(AND(F16<>"",D16<>F16),(D16-F35)/(D16-F16),0))/( IF(AND(F13<>"",D13<>F13),1,0)+ IF(AND(F14<>"",D14<>F14),1,0)+ IF(AND(F15<>"",D15<>F15),1,0)+ IF(AND(F16<>"",D16<>F16),1,0)))<0,"",(( IF(AND(F13<>"",D13<>F13),(D13-F32)/(D13-F13),0)+ IF(AND(F14<>"",D14<>F14),(D14-F33)/(D14-F14),0)+ IF(AND(F15<>"",D15<>F15),(D15-F34)/(D15-F15),0)+ IF(AND(F16<>"",D16<>F16),(D16-F35)/(D16-F16),0))/( IF(AND(F13<>"",D13<>F13),1,0)+ IF(AND(F14<>"",D14<>F14),1,0)+ IF(AND(F15<>"",D15<>F15),1,0)+ IF(AND(F16<>"",D16<>F16),1,0)))),"") -> 0.5642857143
A37: ・次年度に 向けた 改善策
A39: ５ 活動３年目（ | C39: =C30+1 -> 10 | E39: 年度）
A40: ・標準地の 状況 | B40: 項目 | D40: 作業前 | F40: 作業後
B41: =B32 -> 見通し | D41: =IF(F32="","",F32) -> 20 | F41: 28
B42: =B33 -> 見通し | D42: =IF(F33="","",F33) -> 25 | F42: 29
B43: 見通し | D43: 15 | F43: 33
A45: ・目標達成 度 | B45: =IFERROR(IF(((IF(AND(F13<>"",D13<>F13),(D13-F41)/(D13-F13),0)+ IF(AND(F14<>"",D14<>F14),(D14-F42)/(D14-F14),0)+ IF(AND(F15<>"",D15<>F15),(D15-F43)/(D15-F15),0)+ IF(AND(F16<>"",D16<>F16),(D16-F44)/(D16-F16),0))/( IF(AND(F13<>"",D13<>F13),1,0)+ IF(AND(F14<>"",D14<>F14),1,0)+ IF(AND(F15<>"",D15<>F15),1,0)+ IF(AND(F16<>"",D16<>F16),1,0)))<0,"",(( IF(AND(F13<>"",D13<>F13),(D13-F41)/(D13-F13),0)+ IF(AND(F14<>"",D14<>F14),(D14-F42)/(D14-F14),0)+ IF(AND(F15<>"",D15<>F15),(D15-F43)/(D15-F15),0)+ IF(AND(F16<>"",D16<>F16),(D16-F44)/(D16-F16),0))/( IF(AND(F13<>"",D13<>F13),1,0)+ IF(AND(F14<>"",D14<>F14),1,0)+ IF(AND(F15<>"",D15<>F15),1,0)+ IF(AND(F16<>"",D16<>F16),1,0)))),"") -> 1.012857143
A47: ※数字の根拠としてモニタリング野帳を添付すること
A49: 地域活動型（森林資源活用）
A50: 地域活動型（竹林資源活用）
A51: 見通し調査
A52: 樹木の本数調査
A53: 木の混み具合調査（相対幹距比）
A54: 木の混み具合調査（間伐率調査）
A55: 木の混み具合調査（胸高断面積）
A56: 竹の本数調査
A57: 木材資源利用調査
A58: 特用林産物等利用調査

Sheet 4_金銭出納簿
B1: 金銭出納簿（活動組織→地域協議会）
B3: （様式第21号）
B4: 令和８年度 里山林活性化による多面的機能発揮対策交付金（金銭出納簿）
B6: 日付 （通帳） | C6: 区分※ | D6: 内容 | E6: 収入 (交付金＋支援金) （円） | F6: 収入 (自己資金等) （円） | G6: 立替 （借入金等） （円） | H6: 支出（円） | L6: 資機材購入費のうち交付金充当額 | M6: 領収書等 番号 | N6: 活動実施日 （領収日） | O6: 備考 （資機材等財産の保管場所）
H7: 人件費 | I7: 委託費 | J7: その他 | K7: 資機材の 購入等
B8: 2025-07-01 | D8: 会費（○人×◇◇◇◇◇円） | F8: 180000
B9: 2025-07-01 | D9: 資機材自己負担分 | F9: 120000
B10: 2025-07-02 | C10: ② | D10: 傷害保険加入 | J10: 46500 | M10: ① | N10: 2025-07-02
B11: 2025-07-05 | C11: ② | D11: ヘルメット○個、刈払機替刃○枚、○○用ガソリン○㍑ | J11: 172000 | M11: ② | N11: 2025-07-05
B12: 2025-07-10 | C12: ② | D12: 7/10安全講習会 講師謝金 | H12: 50000 | M12: ③ | N12: 2025-07-10
B13: 2025-08-25 | D13: 概算請求 国交付金資機材分 | E13: 120000
B14: 2025-08-30 | C14: ⑦ | D14: チェーンソー○台、刈払機○台 購入 | K14: 240123 | L14: 120000 | M14: ④ | N14: 2025-08-30 | O14: 自治会倉庫
B15: 2025-12-01 | D15: 自治会からの借入金 | G15: 1200000
B16: 2025-12-12 | C16: ① | D16: 日当支払（活動推進費）○日間、○人分 | H16: 60000 | M16: ⑤ | N16: 2025-07-10
B17: 2025-12-12 | C17: ② | D17: 日当支払（森林資源）○日間、○人分 | H17: 160000 | M17: ⑥ | N17: 7/24，9/5，12/1
B18: 2025-12-12 | C18: ③ | D18: 日当支払（竹林資源）○日間、○人分 | H18: 885000 | M18: ⑦ | N18: 7/25，9/6，12/2
B19: 2025-02-25 | D19: 国交付金・県市町支援金 | E19: 1302000
B20: 2025-02-26 | C20: ② | D20: 日当支払（森林資源）○日間、○人分 | H20: 295000 | M20: ⑧ | N20: 12/13～2/5
B21: 2025-02-26 | C21: ③ | D21: 日当支払（竹林資源）○日間、○人分 | H21: 85000 | M21: ⑨ | N21: 1/31、2/1
B22: 2025-02-26 | D22: 自治会からの借入金返済 | G22: -1200000
B29: 計 | E29: =SUM(E8:E28) -> 1422000 | F29: 300000 | G29: 0 | H29: 1535000 | I29: 0 | J29: 218500 | K29: =SUM(K8:K28) -> 240123 | L29: =SUM(L8:L28) -> 120000
D30: 資機材以外交付金等 | E30: =E29-L29 -> 1302000 | G30: 支出計 | H30: =SUM(H29:K29) -> 1993623 | K30: =SUMIF(C8:C28,"⑦",K8:K28) -> 240123 | L30: =ROUNDDOWN(K30/2,-3) -> 120000 | M30: 1/2
E31: 自己負担額 | F31: =H30-E29 -> 571623 | K31: =SUMIF(C9:C29,"⑧",K9:K29) -> 0 | L31: =ROUNDDOWN(K31/3,-3) -> 0 | M31: 1/3
J32: 資機材自己負担 | K32: =K29-L29 -> 120123 | L32: 取組に対する負担 | M32: =F31-K32 -> 451500
B33: ※ 活動の区分：活動推進費＝①、地域活動型（森林資源活用）＝②、地域活動型（竹林資源活用）＝③、複業実践型＝④、機能強化＝⑤、関係人口創出・維持＝⑥、資機材等整備1/2＝⑦、資機材等整備1/3＝⑧
E35: タイプ毎 支出 | F35: 活動推進費 | G35: =SUMPRODUCT((C8:C28="①")*(H8:J28)) -> 60000 | H35: 森林資源活用 | I35: =SUMPRODUCT((C8:C28="②")*(H8:J28)) -> 723500 | J35: 竹林資源活用 | K35: =SUMPRODUCT((C8:C28="③")*(H8:J28)) -> 970000 | L35: 複業実践 | M35: =SUMPRODUCT((C8:C28="④")*(H8:J28)) -> 0
F36: 機能強化 | G36: =SUMPRODUCT((C8:C28="⑤")*(H8:J28)) -> 0 | H36: 関係人口 | I36: =SUMPRODUCT((C8:C28="⑥")*(H8:J28)) -> 0 | J36: 資機材等1/2 | K36: =SUMPRODUCT((C8:C28="⑦")*(H8:K28)) -> 240123 | L36: 資機材等1/3 | M36: =SUMPRODUCT((C8:C28="⑧")*(H8:K28)) -> 0
C41: ① | D41: 活動推進費
C42: ② | D42: 地域活動型（森林資源活用）
C43: ③ | D43: 地域活動型（竹林資源活用）
C44: ④ | D44: 複表実践型
C45: ⑤ | D45: 機能強化
C46: ⑥ | D46: 関係人口創出・維持
C47: ⑦ | D47: 資機材等整備1/2
C48: ⑧ | D48: 資機材等整備1/３

Sheet 5_実施状況整理票
A1: 実施状況整理票（活動組織→地域協議会）
A2: （様式第20号 別紙１）
B3: 実施状況整理票
B4: 都道府県名 | C4: 地域協議会名 | D4: 事務所が所在する市町村名 | E4: 対象森林が所在する市町村名 | F4: 活動組織名 | G4: 構成員数 | I4: 実施した内容 | Q4: アドバイザー制度の利用 | R4: 実施に係る収支 | AF4: 備考
I5: 主たる活動 | L5: 従たる活動 | R5: 収入 | Z5: 支出
I6: 地域活動型 | K6: 複業実践型 | L6: 間伐等(除伐、枝打ち含む。)の実施面積 | M6: 機能強化の延長 | N6: 関係人口創出・維持の活動を通じて 作業に参加した地域外関係者数（延べ人数） | O6: 資機材等整備の実施 | P6: 活動推進費の使用 | R6: 収入 計 | S6: 自己負担額 | T6: 国・地方公共団体 | Z6: 支出 計 | AA6: 人件費 | AB6: 外部委託費 | AC6: その他 | AD6: 資機材等整備 （購入額）
T7: 交付額・支援額 計 | U7: 国 | X7: 都道府県の支援額 | Y7: 市町村の支援額
G8: 合計 | H8: 構成員のうち地域外関係者の数 | U8: 本交付金の交付額 | V8: 交付額のうち 資機材等整備
I9: 森林資源活用 | J9: 竹林資源活用 | V9: 交付率 | AD9: 交付率
V10: 1/2以内該当 | W10: 1/3以内該当 | AD10: 1/2以内該当 | AE10: 1/3以内該当
G11: (人) | H11: (人) | I11: (ha) | J11: (ha) | K11: (ha) | L11: (ha) | M11: (m) | N11: (人) | R11: (円) | S11: (円) | T11: (円) | U11: (円) | V11: (円) | W11: (円) | X11: (円) | Y11: (円) | Z11: (円) | AA11: (円) | AB11: (円) | AC11: (円) | AD11: (円) | AE11: (円)
B12: 兵庫県 | C12: ひょうご森林林業協同組合連合会 | D12: 神戸市 | E12: 神戸市北区 | F12: ='0_実施状況報告書（表紙）'!P11 -> ○○森林保全の会 | G12: 10 | H12: 5 | I12: 3 | J12: 1.5 | K12: 0 | L12: =SUM(I12:K12) -> 4.5 | M12: 100 | N12: 5 | O12: ○ | P12: ○ | Q12: ③ | R12: =SUM(S12:T12) -> 1993623 | S12: ='4_金銭出納簿'!F31 -> 571623 | T12: =SUM(U12:Y12) -> 1422000 | U12: 976000 | V12: ='4_金銭出納簿'!L30 -> 120000 | W12: ='4_金銭出納簿'!L31 -> 0 | X12: 163000 | Y12: 163000 | Z12: =SUM(AA12:AE12) -> 1993623 | AA12: ='4_金銭出納簿'!H29 -> 1535000 | AB12: ='4_金銭出納簿'!I29 -> 0 | AC12: ='4_金銭出納簿'!J29 -> 218500 | AD12: ='4_金銭出納簿'!K30 -> 240123 | AE12: ='4_金銭出納簿'!K31 -> 0
B13: 注１ | C13: 「関係人口創出・維持の活動を通じて作業に参加した地域外関係者数（延べ人数）」は、関係人口創出・維持の活動を実施した場合に、参加した地域外関係者の延べ人数を記入し、それ以外は空欄とすること。
B14: 注２ | C14: 「資機材等整備の実施」は、従たる活動として資機材等整備を実施した場合に「○」を記入し、それ以外は空欄とすること。
B15: 注３ | C15: 「活動推進費の使用」は、従たる活動として活動推進費を使用した場合に「○」を記入し、それ以外は空欄とすること。
B16: 注４ | C16: 「アドバイザー制度の利用」は、別途定めるアドバイザー制度による指導・助言を受けた場合は、以下のうち該当する指導・助言の数字を記入し、それ以外は空欄とすること。
C17: ①森林施業、②侵入竹の伐採・除去・利活用、③森林資源の活用、④森林生態、植生、⑤関係人口、⑥組織づくり、⑦安全管理、⑧その他
B18: 注５ | C18: 「支出」に記入する額は、自己負担額による支出、国の交付額による支出、都道府県・市町村の支援額による支出の合計額をそれぞれ記入すること。
C22: ○
C24: ①
C25: ②
C26: ③
C27: ④
C28: ⑤
C29: ⑥
C30: ⑦
C31: ⑧

Sheet 6_効果チェックシート
A1: 効果チェックシート（活動組織→地域協議会）
A2: （様式第20号 別紙２）
B3: 令和８年度 里山林活性化による多面的機能発揮に係る効果チェックシート | K3: ○
G5: ='0_実施状況報告書（表紙）'!P11 -> ○○森林保全の会
B7: ■ 本年度の取組年度 | E7: 活動計画１年目 | G7: 活動計画２年目 | I7: 活動計画３年目
B8: ■ 効果チェックシート
B9: ※ 採択された活動計画書の計画期間内で、活動を通じて得られた変化または効果について、以下の表に示した変化または成果に該当するものがあれば、チェック欄に「○」を記入してください。 （本年度が活動計画書の1年目であれば「今年度１年間」の活動を、２年目であれば「１年目と２年目」の活動を、３年目であれば「１年目から３年目まで」の活動を、それぞれ通じて得られた変化または効果に「○」を記入してください）。
B10: 項目 | C10: 該当 すれば ○ | D10: 具体的な変化または成果
B11: 活動の広がり | D11: 活動組織の構成員数が増加した
B12: （横展開） | D12: 幅広い年齢層が協力して活動を行った
D13: 新聞や雑誌、広報誌などで活動を紹介された
D14: 他団体（活動団体、企業、自治体等）との協力関係がうまれた
D15: 外部（異なる集落や都市）の住民も森林整備活動に参加した
B16: 活動の持続性 | D16: 構成員が森林整備のための技術や安全管理の資格を取得した
B17: （自立性） | D17: 森林整備のための機材や道具を使用できる構成員数が増えた
D18: 森林整備のために利用可能な本交付金以外の資金が増えた
D19: 若い世代（40歳未満）が参加しており、長期的な活動が可能である
D20: 本交付金終了後に森林整備活動を継続できる見込みがある
B21: 地域貢献 | D21: 対象森林が明るくなり、見通しが良くなった
B22: （景観） | D22: 活動組織の構成員以外から景観が良くなったと言われるようになった
D23: 対象森林や周辺の不法投棄の量が減った／ない状態を維持している
D24: 対象森林が観光資源としても利用できるようになった
D25: 在来種や歴史性を考慮した地域ならではの景観を守っている
B26: 地域貢献 | D26: 対象森林が、地域の憩いの場として活用されている
B27: （文化・教育） | D27: 対象森林が、地域の子供たちの自然体験活動や学習・教育の場となっている
D28: 地域の幼稚園、保育園、小中学校のいずれかと協力関係にある
D29: 対象森林から得られた資源を伝統工芸品づくりに活用した
D30: 伝統文化の維持や郷土食づくりに貢献する活動を行った
B31: 地域貢献 | D31: 鳥獣被害が軽減された（野生鳥獣の出没・侵入が減った）
B32: （その他） | D32: 地域の農業と連携した活動を行った
D33: 希少動植物の保護や生物多様性の保全に貢献している
D34: 土砂流出が軽減されるなど自然災害の防止に役立った
D35: 特産品の開発や地域の雇用創出など地域経済の活性化に貢献している
D36: →次ページ
B37: ■ 効果チェックに際して特筆すべき事項
B38: ・ 今年度に実施した「関係人口創出・維持」について、昨年度も実施した場合、参加者の「延べ人数」の増減について記入してください。
B39: 項目 | C39: 該当 すれば ○ | D39: 昨年度と比較したときの延べ人数の増減
B40: 関係人口の | D40: （延べ人数で比較して） 増加した。（増加した人数： | I40: 人）
B41: 創出・維持 | D41: （延べ人数で比較して） 減少した。（減少した人数： | I41: 人）
B42: 所見（自由記載）
B45: ・ 自然災害等により、活動を計画どおりに行うことが困難な状況が生じた場合は、期待どおりの効果が得られないことも想定されます。災害等が発生し計画どおりに活動ができなかった場合には、その理由を選択し、該当がなければその他に簡単にご記入ください。
B46: 項目 | C46: 該当 すれば ○ | D46: 自然災害等による活動への影響
B47: 自然災害等 | D47: 災害等で活動区域が被害を受け、活動が行えなかった。
D48: 災害等で活動区域までの道が被害を受け、活動が行えなかった。
D49: 土地所有者との協定が締結できず活動を行えなかった。
D50: 感染症等の感染防止ため活動を行えなかった。
D51: 野生鳥獣による人身被害防止のため活動を行えなかった。
D52: その他（自由記載）

Sheet 7_「みどりチェック」
A1: 「みどりチェック」チェックシート（活動組織→地域協議会）
A2: （様式第14号） | G2: ←着色箇所が入力欄です。
A3: 「みどりチェック」チェックシート（活動組織向け）
A4: 事業名：森林・山村地域活性化振興対策 里山林活性化による多面的機能発揮対策交付金
A5: 活動組織名 | C5: ='0_実施状況報告書（表紙）'!P11 -> ○○森林保全の会
A6: 代表者氏名 | C6: ='0_実施状況報告書（表紙）'!P13 -> 山林 太郎 | E6: ↓該当する欄に○
A7: 所在地 | E7: 申請時 （します）
A8: 連絡先 | E8: 報告時 （しました） | F8: ○
A10: ・交付申請時に全ての項目にチェックを入れ、事業実施期間中に各項目に取り組んでください。 ・実績報告時に取り組んだ項目にチェックを入れて提出してください。 ・各項目においてどのような取組を行えばよいか分からない場合は、解説書を御覧ください。 ・※のついた項目のうち該当しない項目は「該当しない」にチェックを入れてください。 | F10: 解説書
A12: チェック | B12: 環境関係法令の遵守等
A13: □ | B13: ① | C13: みどりの食料システム戦略の理解
A14: □ | B14: ② | C14: 関係法令の遵守
A15: □ | B15: ③ | C15: 正しい知識に基づく作業安全に努める
B16: 適正な施肥
A17: □ | B17: ④ | C17: ※種苗生産を行う場合 肥料の適正な保管 | E17: （該当しない | F17: □
A18: □ | B18: ⑤ | C18: ※種苗生産を行う場合 肥料の使用状況等の記録・保存に努める | E18: （該当しない | F18: □
B19: 適正な防除
A20: □ | B20: ⑥ | C20: ※農薬を使用する場合 農薬の適正な使用・保管 | E20: （該当しない | F20: □
A21: □ | B21: ⑦ | C21: ※農薬を使用する場合 農薬の使用状況等の記録・保存 | E21: （該当しない | F21: □
B22: エネルギーの節減
A23: □ | B23: ⑧ | C23: 省エネを意識し、不必要・非効率なエネルギー消費をしないように努める
B24: 悪臭及び害虫の発生防止
A25: □ | B25: ⑨ | C25: 悪臭・害虫の発生防止・低減に努める
B26: 廃棄物の発生抑制、適正な循環的な利用及び適正な処分
A27: □ | B27: ⑩ | C27: 廃棄物の削減に努め、適正に処理
A28: □ | B28: ⑪ | C28: 未利用材の有効活用を検討
B29: 生物多様性への悪影響の防止
A30: □ | B30: ⑫ | C30: 生物多様性に配慮した事業実施（物資調達、施業等）に努める
A31: 注） | B31: 「② 関係法令の遵守」について、②関係法令の遵守について、対象は、肥料の品質の確保等に関する法律（昭和25年法律第127号）、農薬取締法（昭和23年法律第82号）、廃棄物の処理及び清掃に関する法律（昭和45年法律第137号）、食品循環資源の再生利用等の促進に関する法律（平成12年法律第116号）、容器包装に係る分別収集及び再商品化の促進等に関する法律（平成７年法律第112号）、水質汚濁防止法（昭和45年法律第138号）、労働安全衛生法（昭和47年法律第57号）、合法伐採木材等の流通及び利用の促進に関する法律（平成28年法律第48号）とします。
A32: ＜報告内容の確認と個人情報の取り扱いについて＞ ・本チェックシートにて報告された内容は、農林水産省等が対象者を抽出し、実施状況の確認を行います。 ・記入いただいた個人情報は、本チェックシートの実施状況確認のために農林水産省等で使用し、御本人の同意がなければ第三者に提供することはありません。
E33: 上記について、確認しました→ | F33: □

Sheet 8_「関係人口創出・維持」の活動の参加者名簿
A1: 令和８年度 「関係人口創出・維持」参加者名簿
A2: 活動日： | C2: 年 月 日 | E2: ='0_実施状況報告書（表紙）'!P11 -> ○○森林保全の会
A3: N0. | B3: 氏名 | D3: 居住地 （市町村までは必ず記入） | E3: 備考
A4: 1
A5: 2
A6: 3
A7: 4
A8: 5
A9: 6
A10: 7
A11: 8
A12: 9
A13: 10
A14: 11
A15: 12
A16: 13
A17: 14
A18: 15
A19: 16
A20: 17
A21: 18
A22: 19
A23: 20
A24: 21
A25: 22
A26: 23
A27: 24
A28: 25

Sheet 9_活動記録総括表
C3: (参考様式第12号）
C4: 8
G6: 記入者名： | N6: （TEL）：
K7: （記入年月日） 令和 | Q7: 年 | S7: 月 | U7: 日
D8: 項目 | F8: 回 答 | T8: 【情報公開】 非公開＝×
C9: 基 本 情 報 | D9: 団体名
D10: 設立年月日 | J10: 年 | L10: 月 | N10: 日
D11: 代表者名（ふりがな） | T11: 原則非公開
D12: 団体所在地（郵便等の送付先） | E12: ①住所（個人宅の場合は個人名も明記） | F12: 〒 | T12: 原則非公開
E14: ②電話・FAX番号 | F14: 電話： | M14: FAX： | T14: 原則非公開
D15: ＨＰアドレス
D16: Ｅメールアドレス | T16: 原則非公開
D17: 会費の金額 | I17: 円／年
C18: =C4 -> 8 | D18: 会員及びリーダー数（年度末現在） | F18: 会員数 | K18: 人 | L18: うち活動リーダー数 | S18: 人 | T18: 会員平均年齢
D19: 活動日数及び参加人数 | F19: 活動日数 | K19: 日 | L19: 活動参加延べ人数 | S19: 人 | U19: 歳
D20: 活動内容 | E20: ①活動場所等 | Q20: （計 | S20: （計 カ所）
E21: （所在地市町名）
D22: ※（様式第20号 別紙1）実施状況整理票に記載の面積と 本交付金以外の活動も合わせてご記入ください。 | E22: ②森林の形態・面積 | F22: 所有形態 | L22: 面積 | U22: ha
E24: ③作業実面積（活動地毎に記載） ※作業重複面積を除く | G24: ＊人工林…スギ・ヒノキの人工林 | N24: 活動場所 （市町名） | P24: 人工林＊(ha) | R24: 里山林＊(ha) | T24: 竹林(ha)
G25: ＊里山林…広葉樹林、雑木林、マツ林
G27: ※「計」欄の面積が、下記④「計」以下になっているか確認してください。
N28: 実面積計 | P28: =SUM(P25:Q27) -> 0 | R28: =SUM(R25:S27) -> 0 | T28: =SUM(T25:U27) -> 0
E29: ④作業延面積 （活動地毎に記載） ※③≦④
G30: 作業内容 | N30: 活動場所 （市町名） | P30: 人工林＊ | R30: 里山林＊ | T30: 竹林
G31: ア．地拵え（ｈａ）
G32: イ．植栽（ｈａ）
G33: ウ．下刈り（ｈａ）
G34: エ．除間伐（ｈａ）
G35: オ．枝打ち（ｈａ）
G36: カ．その他（ｈａ）（ ）
G37: 延面積計（ｈａ） | P37: =SUM(P31:Q36) -> 0 | R37: =SUM(R31:S36) -> 0 | T37: =SUM(T31:U36) -> 0
G38: キ．歩道整備（ｍ）
E39: ⑤持続的な取り組み、その他特色のある活動
E40: ⑥会員の確保と人材育成についての意見、取組
E41: ⑦表彰歴
E42: ⑧その他特記事項

Sheet 森林整備実績図
B2: 森林整備実績図
B4: 活動組織名：
B5: ○○活動組織
B7: 対象森林所在地：
B8: ○○市○○町○○ 1000-1
B12: 令和8年度取組実績 森林資源活用：1.0ha① 竹林資源活用：1.0ha② 強化：○ｍ 求積方法：QGISによる求積

Sheet 森林整備区域管理票１（写真撮影位置図）
B1: （参考様式第13号）
B2: 森林整備区域管理票１（写真撮影位置図）
B3: ダブルクリックで画像を選択

Sheet 森林整備区域管理票２（現場の整備状況等）
B1: 森林整備区域管理票２（現場の整備状況等）
B3: 写真番号： | O3: ダブルクリックで画像を選択
B4: 写真位置（ | F4: A | H4: ）
B12: 写真番号： | O12: ダブルクリックで画像を選択
B13: 写真位置（ | F13: B | H13: ）
B21: 写真番号： | O21: ダブルクリックで画像を選択
B22: 写真位置（ | F22: C | H22: ）
B30: 写真番号： | O30: ダブルクリックで画像を選択
B31: 写真位置（ | F31: D | H31: ）
